fUSD/lending_fUSD_20250530
["ID","MTS","AMOUNT","RATE_DAILY","PERIOD"]
[363135213,1748596243984,-643.45,0.00021917,2]
[363135214,1748596243994,-500.0,0.00021917,2]
[363135215,1748596244004,-629.22,0.00021917,2]
[363135216,1748596244013,-206.55841864,0.00021917,2]
[363135217,1748596244023,-420.0,0.00021917,2]
[363135218,1748596244032,-548.03,0.00021917,2]
[363135219,1748596244042,-1174.72,0.00021917,2]
[363135220,1748596244052,-420.0,0.00021917,2]
[363135221,1748596244061,-482.28,0.00021917,2]
[363135222,1748596244071,-420.0,0.00021917,2]
[363135223,1748596244080,-3293.54620311,0.00021917,2]
[363135224,1748596244090,-420.0,0.00021917,2]
[363135225,1748596244100,-420.0,0.00021917,2]
[363135226,1748596244109,-420.0,0.00021917,2]
[363135227,1748596244119,-1483.37,0.00021917,2]
[363135228,1748596244129,-420.0,0.00021917,2]
[363135229,1748596244138,-420.0,0.00021917,2]
[363135230,1748596244149,-420.0,0.00021917,2]
[363135231,1748596244159,-420.0,0.00021917,2]
[363135232,1748596244169,-420.0,0.00021917,2]
[363135233,1748596244180,-674.05,0.00021917,2]
[363135234,1748596244194,-999.0,0.00021917,2]
[363135235,1748596244204,-420.0,0.00021917,2]
[363135236,1748596244213,-420.0,0.00021917,2]
[363135237,1748596244224,-732.84,0.00021917,2]
[363135238,1748596244235,-420.0,0.00021917,2]
[363135239,1748596244246,-452.38,0.00021917,2]
[363135240,1748596244256,-500.0,0.00021917,2]
[363135241,1748596244266,-1449.18,0.00021917,2]
[363135242,1748596244276,-974.86,0.00021917,2]
[363135243,1748596244289,-420.0,0.00021917,2]
[363135244,1748596244307,-709.59,0.00021917,2]
[363135245,1748596244318,-420.0,0.00021917,2]
[363135246,1748596244328,-152.615672,0.00021917,2]
[363135247,1748596244339,-2480.538429,0.00021917,2]
[363135248,1748596244350,-2633.19,0.00021917,2]
[363135249,1748596244360,-2480.538429,0.00021917,2]
[363135250,1748596244370,-420.0,0.00021917,2]
[363135251,1748596244380,-2426.208506,0.00021917,2]
[363135252,1748596244390,-2426.208506,0.00021917,2]
[363135253,1748596244400,-477.23,0.00021917,2]
[363135254,1748596244409,-425.35899265,0.00021917,2]
[363135255,1748596244418,-465.84,0.00021917,2]
[363135256,1748596244428,-1199.85,0.00021917,2]
[363135257,1748596244443,-424.2585971,0.00021917,2]
[363135258,1748596244452,-420.0,0.00021917,2]
[363135259,1748596244462,-626.48,0.00021917,2]
[363135260,1748596244471,-541.82,0.00021917,2]
[363135261,1748596244481,-636.52,0.00021917,2]
[363135262,1748596244490,-420.0,0.00021917,2]
[363135263,1748596244500,-425.36307424,0.00021917,2]
[363135264,1748596244510,-420.0,0.00021917,2]
[363135265,1748596244520,-420.0,0.00021917,2]
[363135266,1748596244531,-530.85,0.00021917,2]
[363135267,1748596244543,-797.78,0.00021917,2]
[363135268,1748596244554,-420.0,0.00021917,2]
[363135269,1748596244564,-391.09081236,0.00021917,2]
[363135270,1748596244574,-420.0,0.00021917,2]
[363135271,1748596244584,-569.22,0.00021917,2]
[363135272,1748596244593,-450.48,0.00021917,2]
[363135273,1748596244603,-1726.28,0.00021917,2]
[363135274,1748596244612,-420.0,0.00021917,2]
[363135275,1748596244622,-420.0,0.00021917,2]
[363135276,1748596244632,-448.21,0.00021917,2]
[363135277,1748596244642,-554.21,0.00021917,2]
[363135278,1748596244662,-570.24,0.00021917,2]
[363135279,1748596244680,-1002.89,0.00021917,2]
[363135280,1748596244691,-134006.56,0.00021917,2]
[363135281,1748596244702,-500.0,0.00021917,2]
[363135282,1748596244710,-420.0,0.00021917,2]
[363135283,1748596244719,-1988.68,0.00021917,2]
[363135284,1748596244729,-500.0,0.00021917,2]
[363135285,1748596244738,-420.0,0.00021917,2]
[363135286,1748596244748,-953.63,0.00021917,2]
[363135287,1748596244758,-500.0,0.00021917,2]
[363135288,1748596244768,-420.0,0.00021917,2]
[363135289,1748596244777,-3593.93,0.00021917,2]
[363135290,1748596244787,-867.02,0.00021917,2]
[363135291,1748596244796,-661.92,0.00021917,2]
[363135292,1748596244806,-1025.35,0.00021917,2]
[363135293,1748596244816,-1820.65,0.00021917,2]
[363135294,1748596244826,-1016.11,0.00021917,2]
[363135295,1748596244835,-523.64,0.00021917,2]
[363135296,1748596244845,-691.06,0.00021917,2]
[363135297,1748596244854,-1429.13,0.00021917,2]
[363135298,1748596244864,-420.0,0.00021917,2]
[363135299,1748596244873,-420.0,0.00021917,2]
[363135300,1748596244883,-420.0,0.00021917,2]
[363135301,1748596244892,-1468.84,0.00021917,2]
[363135302,1748596244902,-420.0,0.00021917,2]
[363135303,1748596244916,-1677.71,0.00021917,2]
[363135304,1748596244925,-1438.12,0.00021917,2]
[363135305,1748596244935,-420.0,0.00021917,2]
[363135306,1748596244947,-1166.06,0.00021917,2]
[363135307,1748596244961,-904.64,0.00021917,2]
[363135308,1748596244971,-420.0,0.00021917,2]
[363135309,1748596244983,-420.0,0.00021917,2]
[363135310,1748596244992,-1145.45,0.00021917,2]
[363135311,1748596245001,-1022.05,0.00021917,2]
[363135312,1748596245011,-420.0,0.00021917,2]
[363135313,1748596245020,-847.64,0.00021917,2]
[363135314,1748596245030,-420.0,0.00021917,2]
[363135315,1748596245039,-420.0,0.00021917,2]
[363135316,1748596245049,-420.0,0.00021917,2]
[363135317,1748596245059,-420.0,0.00021917,2]
[363135318,1748596245069,-1054.71,0.00021917,2]
[363135319,1748596245079,-942.87,0.00021917,2]
[363135320,1748596245088,-654.3,0.00021917,2]
[363135321,1748596245098,-420.0,0.00021917,2]
[363135322,1748596245108,-792.08,0.00021917,2]
[363135323,1748596245117,-1160.42,0.00021917,2]
[363135324,1748596245127,-1614.51,0.00021917,2]
[363135325,1748596245136,-3268.06,0.00021917,2]
[363135326,1748596245146,-366.58,0.00021917,2]
[363135327,1748596245155,-277.13366348,0.00021917,2]
[363135328,1748596245165,-1441.57,0.00021917,2]
[363135329,1748596245175,-506.87,0.00021917,2]
[363135330,1748596245185,-420.0,0.00021917,2]
[363135331,1748596245196,-925.43,0.00021917,2]
[363135332,1748596245206,-12850.13,0.00021917,2]
[363135333,1748596245216,-773.66,0.00021917,2]
[363135334,1748596245226,-652.79,0.00021917,2]
[363135335,1748596245235,-420.0,0.00021917,2]
[363135336,1748596245245,-420.0,0.00021917,2]
[363135337,1748596245254,-420.0,0.00021917,2]
[363135338,1748596245264,-470.65412982,0.00021917,2]
[363135339,1748596245274,-784.98,0.00021917,2]
[363135340,1748596245283,-447.77,0.00021917,2]
[363135341,1748596245293,-580.3,0.00021917,2]
[363135342,1748596245302,-693.3,0.00021917,2]
[363135343,1748596245312,-420.0,0.00021917,2]
[363135344,1748596245321,-677.77,0.00021917,2]
[363135345,1748596245330,-1133.37,0.00021917,2]
[363135346,1748596245340,-420.0,0.00021917,2]
[363135347,1748596245350,-420.0,0.00021917,2]
[363135348,1748596245359,-533.51,0.00021917,2]
[363135349,1748596245369,-2241.8,0.00021917,2]
[363135350,1748596245379,-420.0,0.00021917,2]
[363135351,1748596245389,-420.0,0.00021917,2]
[363135352,1748596245398,-3250.5,0.00021917,2]
[363135353,1748596245408,-1000.0,0.00021917,2]
[363135354,1748596245417,-1653.59,0.00021917,2]
[363135355,1748596245427,-420.0,0.00021917,2]
[363135356,1748596245438,-845.55,0.00021917,2]
[363135357,1748596245448,-1333.0,0.00021917,2]
[363135358,1748596245457,-3892.92,0.00021917,2]
[363135359,1748596245467,-500.0,0.00021917,2]
[363135360,1748596245477,-420.0,0.00021917,2]
[363135361,1748596245486,-817.07,0.00021917,2]
[363135362,1748596245496,-261.91502367,0.00021917,2]
[363135363,1748596245506,-420.0,0.00021917,2]
[363135364,1748596245515,-710.63,0.00021917,2]
[363135365,1748596245525,-420.0,0.00021917,2]
[363135366,1748596245534,-2059.45,0.00021917,2]
[363135367,1748596245543,-9451.2,0.00021917,2]
[363135368,1748596245552,-1357.78,0.00021917,2]
[363135369,1748596245562,-1901.26,0.00021917,2]
[363135370,1748596245572,-934.76,0.00021917,2]
[363135371,1748596245581,-10970.24,0.00021917,2]
[363135372,1748596245591,-1428.86,0.00021917,2]
[363135373,1748596245600,-420.0,0.00021917,2]
[363135374,1748596245610,-420.98,0.00021917,2]
[363135375,1748596245620,-1573.44,0.00021917,2]
[363135376,1748596245629,-500.0,0.00021917,2]
[363135377,1748596245638,-196.06,0.00021917,2]
[363135378,1748596245647,-420.0,0.00021917,2]
[363135379,1748596245657,-420.0,0.00021917,2]
[363135380,1748596245666,-420.0,0.00021917,2]
[363135381,1748596245676,-813.34,0.00021917,2]
[363135382,1748596245688,-603.4,0.00021917,2]
[363135383,1748596245697,-420.0,0.00021917,2]
[363135384,1748596245707,-1333.72,0.00021917,2]
[363135385,1748596245716,-160.0,0.00021917,2]
[363135386,1748596245726,-1412.68,0.00021917,2]
[363135387,1748596245735,-426.85,0.00021917,2]
[363135388,1748596245745,-2328.38,0.00021917,2]
[363135389,1748596245754,-975.03,0.00021917,2]
[363135390,1748596245763,-420.0,0.00021917,2]
[363135391,1748596245773,-704.87,0.00021917,2]
[363135392,1748596245782,-420.0,0.00021917,2]
[363135393,1748596245791,-736.18,0.00021917,2]
[363135394,1748596245800,-631.65,0.00021917,2]
[363135395,1748596245810,-500.0,0.00021917,2]
[363135396,1748596245819,-601.47,0.00021917,2]
[363135397,1748596245828,-420.0,0.00021917,2]
[363135398,1748596245838,-420.0,0.00021917,2]
[363135399,1748596245847,-5419.96,0.00021917,2]
[363135400,1748596245856,-420.0,0.00021917,2]
[363135401,1748596245866,-500.0,0.00021917,2]
[363135402,1748596245875,-3918.5,0.00021917,2]
[363135403,1748596245884,-998.38,0.00021917,2]
[363135404,1748596245893,-420.0,0.00021917,2]
[363135405,1748596245903,-539.96,0.00021917,2]
[363135406,1748596245916,-420.0,0.00021917,2]
[363135407,1748596245925,-4577.96,0.00021917,2]
[363135408,1748596245935,-1367.76,0.00021917,2]
[363135410,1748596245946,-420.0,0.00021917,2]
[363135411,1748596245956,-3329.67,0.00021917,2]
[363135412,1748596245965,-3145.33,0.00021917,2]
[363135413,1748596245975,-981.28,0.00021917,2]
[363135414,1748596245985,-7415.08,0.00021917,2]
[363135415,1748596245995,-420.0,0.00021917,2]
[363135416,1748596246005,-420.0,0.00021917,2]
[363135417,1748596246014,-420.0,0.00021917,2]
[363135418,1748596246024,-903.22,0.00021917,2]
[363135419,1748596246033,-802.7,0.00021917,2]
[363135420,1748596246043,-420.0,0.00021917,2]
[363135421,1748596246052,-420.0,0.00021917,2]
[363135422,1748596246061,-995.42,0.00021917,2]
[363135423,1748596246070,-1119.03,0.00021917,2]
[363135424,1748596246080,-6688.85,0.00021917,2]
[363135425,1748596246090,-3572.99,0.00021917,2]
[363135426,1748596246099,-420.0,0.00021917,2]
[363135427,1748596246109,-2846.56,0.00021917,2]
[363135428,1748596246119,-3338.32,0.00021917,2]
[363135429,1748596246128,-6457.8,0.00021917,2]
[363135430,1748596246138,-1580.88,0.00021917,2]
[363135431,1748596246148,-932.08,0.00021917,2]
[363135432,1748596246158,-655.63872941,0.00021917,2]
[363135433,1748596246232,-5067.81127059,0.00021917,2]
[363135434,1748596246241,-731.91,0.00021917,2]
[363135435,1748596246251,-1231.8,0.00021917,2]
[363135436,1748596246260,-346.50372941,0.00021917,2]
[363135445,1748596251755,-73.49627059,0.00021917,2]
[363135446,1748596251766,-420.0,0.00021917,2]
[363135447,1748596251776,-8127.83,0.00021917,2]
[363135448,1748596251785,-2599.58,0.00021917,2]
[363135449,1748596251795,-420.0,0.00021917,2]
[363135450,1748596251805,-1203.4,0.00021917,2]
[363135451,1748596251815,-457.52,0.00021917,2]
[363135452,1748596251825,-1977.07,0.00021917,2]
[363135453,1748596251834,-628.03,0.00021917,2]
[363135454,1748596251844,-819.96,0.00021917,2]
[363135455,1748596251854,-879.28,0.00021917,2]
[363135456,1748596251864,-928.94,0.00021917,2]
[363135457,1748596251873,-420.0,0.00021917,2]
[363135458,1748596251883,-541.54,0.00021917,2]
[363135459,1748596251893,-502.86583596,0.00021917,2]
[363135460,1748596251904,-469.32,0.00021917,2]
[363135461,1748596251916,-1633.9,0.00021917,2]
[363135462,1748596251926,-1498.62,0.00021917,2]
[363135463,1748596251936,-7228.28,0.00021917,2]
[363135464,1748596251947,-1720.72,0.00021917,2]
[363135465,1748596251956,-791.26,0.00021917,2]
[363135466,1748596251966,-420.0,0.00021917,2]
[363135467,1748596251976,-946.79,0.00021917,2]
[363135468,1748596251986,-420.0,0.00021917,2]
[363135469,1748596251996,-727.06,0.00021917,2]
[363135470,1748596252007,-426.76,0.00021917,2]
[363135471,1748596252016,-420.0,0.00021917,2]
[363135472,1748596252026,-1892.23,0.00021917,2]
[363135473,1748596252036,-420.0,0.00021917,2]
[363135474,1748596252046,-10068.84,0.00021917,2]
[363135475,1748596252056,-420.0,0.00021917,2]
[363135476,1748596252065,-420.0,0.00021917,2]
[363135477,1748596252074,-420.0,0.00021917,2]
[363135478,1748596252084,-986.69,0.00021917,2]
[363135479,1748596252094,-501.66471748,0.00021917,2]
[363135480,1748596252104,-4672.64,0.00021917,2]
[363135481,1748596252114,-1561.92,0.00021917,2]
[363135482,1748596252124,-420.0,0.00021917,2]
[363135483,1748596252134,-1327.11,0.00021917,2]
[363135484,1748596252144,-420.0,0.00021917,2]
[363135485,1748596252154,-420.0,0.00021917,2]
[363135486,1748596252163,-548.51,0.00021917,2]
[363135487,1748596252173,-713.62,0.00021917,2]
[363135488,1748596252182,-1321.49,0.00021917,2]
[363135489,1748596252192,-695.76,0.00021917,2]
[363135490,1748596252202,-723.67,0.00021917,2]
[363135491,1748596252213,-4050.97,0.00021917,2]
[363135492,1748596252223,-19693.44,0.00021917,2]
[363135493,1748596252233,-430.9,0.00021917,2]
[363135494,1748596252243,-1095.43,0.00021917,2]
[363135495,1748596252253,-23042.2,0.00021917,2]
[363135496,1748596252263,-1293.95,0.00021917,2]
[363135497,1748596252273,-568.64442179,0.00021917,2]
[363135498,1748596252283,-3526.65,0.00021917,2]
[363135499,1748596252292,-1186.49,0.00021917,2]
[363135500,1748596252302,-420.0,0.00021917,2]
[363135501,1748596252311,-965.18,0.00021917,2]
[363135502,1748596252321,-160.0,0.00021917,2]
[363135503,1748596252331,-683.13,0.00021917,2]
[363135504,1748596252340,-815.44,0.00021917,2]
[363135505,1748596252350,-420.0,0.00021917,2]
[363135506,1748596252360,-420.0,0.00021917,2]
[363135507,1748596252370,-420.0,0.00021917,2]
[363135508,1748596252380,-9126.12,0.00021917,2]
[363135509,1748596252390,-420.0,0.00021917,2]
[363135510,1748596252400,-1411.51,0.00021917,2]
[363135511,1748596252410,-420.0,0.00021917,2]
[363135512,1748596252420,-2158.56,0.00021917,2]
[363135513,1748596252430,-420.0,0.00021917,2]
[363135514,1748596252440,-420.0,0.00021917,2]
[363135515,1748596252450,-2787.52,0.00021917,2]
[363135516,1748596252461,-863.14,0.00021917,2]
[363135517,1748596252471,-420.0,0.00021917,2]
[363135518,1748596252480,-4947.7,0.00021917,2]
[363135519,1748596252490,-3213.8,0.00021917,2]
[363135520,1748596252500,-1347.62,0.00021917,2]
[363135521,1748596252509,-4092.37,0.00021917,2]
[363135522,1748596252520,-1806.1,0.00021917,2]
[363135523,1748596252530,-1512.98,0.00021917,2]
[363135524,1748596252540,-688.79,0.00021917,2]
[363135525,1748596252551,-2985.27,0.00021917,2]
[363135526,1748596252560,-11002.19,0.00021917,2]
[363135527,1748596252570,-495.33,0.00021917,2]
[363135528,1748596252580,-2033.21,0.00021917,2]
[363135529,1748596252590,-1134.25,0.00021917,2]
[363135530,1748596252599,-926.0,0.00021917,2]
[363135531,1748596252609,-2685.41,0.00021917,2]
[363135532,1748596252619,-1187.43,0.00021917,2]
[363135533,1748596252629,-2388.64,0.00021917,2]
[363135534,1748596252639,-1095.56,0.00021917,2]
[363135535,1748596252649,-3069.7,0.00021917,2]
[363135536,1748596252659,-420.0,0.00021917,2]
[363135537,1748596252670,-420.0,0.00021917,2]
[363135538,1748596252679,-505.15,0.00021917,2]
[363135539,1748596252689,-2756.47,0.00021917,2]
[363135540,1748596252700,-11931.92,0.00021917,2]
[363135541,1748596252710,-268.79267623,0.00021917,2]
[363135542,1748596252724,-263.11732377,0.00021917,2]
[363135543,1748596252734,-988.77,0.00021917,2]
[363135544,1748596252743,-4658.61,0.00021917,2]
[363135545,1748596252753,-1084.79,0.00021917,2]
[363135546,1748596252763,-965.36,0.00021917,2]
[363135547,1748596252772,-697.13,0.00021917,2]
[363135548,1748596252782,-5367.96,0.00021917,2]
[363135549,1748596252792,-679.01,0.00021917,2]
[363135550,1748596252801,-500.0,0.00021917,2]
[363135551,1748596252811,-3707.54,0.00021917,2]
[363135552,1748596252822,-420.0,0.00021917,2]
[363135553,1748596252831,-632.77,0.00021917,2]
[363135554,1748596252842,-2813.14,0.00021917,2]
[363135555,1748596253064,-1165.19,0.00021917,2]
[363135556,1748596253084,-420.0,0.00021917,2]
[363135557,1748596253094,-420.0,0.00021917,2]
[363135558,1748596253104,-420.0,0.00021917,2]
[363135559,1748596253113,-1167.19,0.00021917,2]
[363135560,1748596253123,-7676.41,0.00021917,2]
[363135561,1748596253133,-1061.54,0.00021917,2]
[363135562,1748596253143,-712.15,0.00021917,2]
[363135563,1748596253152,-1842.62,0.00021917,2]
[363135564,1748596253162,-1491.36,0.00021917,2]
[363135565,1748596253172,-1135.26,0.00021917,2]
[363135566,1748596253182,-861.14,0.00021917,2]
[363135567,1748596253191,-733.55,0.00021917,2]
[363135568,1748596253201,-1062.41,0.00021917,2]
[363135569,1748596253210,-1548.58,0.00021917,2]
[363135570,1748596253220,-750.27,0.00021917,2]
[363135571,1748596253229,-508.67,0.00021917,2]
[363135572,1748596253239,-607.71,0.00021917,2]
[363135573,1748596253248,-809.35,0.00021917,2]
[363135574,1748596253258,-572.27,0.00021917,2]
[363135575,1748596253267,-420.0,0.00021917,2]
[363135576,1748596253277,-1022.63,0.00021917,2]
[363135577,1748596253286,-741.43,0.00021917,2]
[363135578,1748596253295,-420.0,0.00021917,2]
[363135579,1748596253305,-420.0,0.00021917,2]
[363135580,1748596253314,-451.07276102,0.00021917,2]
[363135581,1748596253323,-420.0,0.00021917,2]
[363135582,1748596253333,-1352.68,0.00021917,2]
[363135583,1748596253342,-475.28904929,0.00021917,2]
[363135584,1748596253351,-591.17,0.00021917,2]
[363135585,1748596253361,-968.53,0.00021917,2]
[363135586,1748596253370,-586.88,0.00021917,2]
[363135587,1748596253379,-457.61,0.00021917,2]
[363135588,1748596253388,-1094.76,0.00021917,2]
[363135589,1748596253397,-160.0,0.00021917,2]
[363135590,1748596253407,-1407.73,0.00021917,2]
[363135591,1748596253416,-2223.38,0.00021917,2]
[363135592,1748596253425,-547.1,0.00021917,2]
[363135593,1748596253434,-420.0,0.00021917,2]
[363135594,1748596253445,-2295.58,0.00021917,2]
[363135595,1748596253455,-420.0,0.00021917,2]
[363135596,1748596253465,-33602.07,0.00021917,2]
[363135597,1748596253474,-1153.48,0.00021917,2]
[363135598,1748596253483,-420.0,0.00021917,2]
[363135599,1748596253492,-1851.5,0.00021917,2]
[363135600,1748596253502,-567.11,0.00021917,2]
[363135601,1748596253511,-6544.82,0.00021917,2]
[363135602,1748596253520,-1029.17,0.00021917,2]
[363135603,1748596253529,-420.0,0.00021917,2]
[363135604,1748596253538,-867.18,0.00021917,2]
[363135605,1748596253547,-503.36760929,0.00021917,2]
[363135606,1748596253557,-420.0,0.00021917,2]
[363135607,1748596253566,-420.0,0.00021917,2]
[363135608,1748596253575,-3280.07,0.00021917,2]
[363135609,1748596253585,-1467.68,0.00021917,2]
[363135610,1748596253594,-810.44,0.00021917,2]
[363135611,1748596253603,-206.80561198,0.00021917,2]
[363135612,1748596253612,-4786.5,0.00021917,2]
[363135613,1748596253621,-432.39,0.00021917,2]
[363135614,1748596253630,-420.0,0.00021917,2]
[363135615,1748596253639,-557.73,0.00021917,2]
[363135616,1748596253649,-420.0,0.00021917,2]
[363135617,1748596253658,-321.67794185,0.00021918,2]
[363135618,1748596253667,-1787.32085474,0.00021918,2]
[363135619,1748596253677,-1787.32085474,0.00021918,2]
[363135620,1748596253686,-1787.32085474,0.00021918,2]
[363135621,1748596253697,-1787.32085474,0.00021918,2]
[363135622,1748596253706,-1787.32085474,0.00021918,2]
[363135623,1748596253716,-1787.32085474,0.00021918,2]
[363135624,1748596253725,-1787.32085474,0.00021918,2]
[363135625,1748596253734,-1787.32085474,0.00021918,2]
[363135626,1748596253743,-1787.32085474,0.00021918,2]
[363135627,1748596253753,-1787.32085474,0.00021918,2]
[363135628,1748596253763,-1787.32085474,0.00021918,2]
[363135629,1748596253773,-1787.32085474,0.00021918,2]
[363135630,1748596253782,-1787.32085474,0.00021918,2]
[363135631,1748596253791,-1787.32085474,0.00021918,2]
[363135632,1748596253801,-1787.32085474,0.00021918,2]
[363135633,1748596253811,-1787.32085474,0.00021918,2]
[363135634,1748596253820,-1787.32085474,0.00021918,2]
[363135635,1748596253829,-1787.32085474,0.00021918,2]
[363135636,1748596253839,-1787.32085474,0.00021918,2]
[363135637,1748596253848,-1787.32085474,0.00021918,2]
[363135638,1748596253858,-1787.32085474,0.00021918,2]
[363135639,1748596253867,-1787.32085474,0.00021918,2]
[363135640,1748596253877,-1787.32085474,0.00021918,2]
[363135641,1748596253886,-1787.32085474,0.00021918,2]
[363135642,1748596253896,-1787.32085474,0.00021918,2]
[363135643,1748596253905,-1787.32085474,0.00021918,2]
[363135644,1748596253918,-1787.32085474,0.00021918,2]
[363135645,1748596253927,-1787.32085474,0.00021918,2]
[363135646,1748596253937,-1787.32085474,0.00021918,2]
[363135647,1748596253947,-1787.32085474,0.00021918,2]
[363135648,1748596253958,-1787.32085474,0.00021918,2]
[363135649,1748596253967,-1787.32085474,0.00021918,2]
[363135650,1748596253977,-1787.32085474,0.00021918,2]
[363135651,1748596253986,-1787.32085474,0.00021918,2]
[363135652,1748596253997,-1787.32085474,0.00021918,2]
[363135653,1748596254007,-1787.32085474,0.00021918,2]
[363135654,1748596254017,-1787.32085474,0.00021918,2]
[363135655,1748596254027,-1787.32085474,0.00021918,2]
[363135656,1748596254036,-1787.32085474,0.00021918,2]
[363135657,1748596254046,-1787.32085474,0.00021918,2]
[363135658,1748596254056,-1787.32085474,0.00021918,2]
[363135659,1748596254066,-1787.32085474,0.00021918,2]
[363135660,1748596254076,-1787.32085474,0.00021918,2]
[363135661,1748596254085,-1787.32085474,0.00021918,2]
[363135662,1748596254095,-1787.32085474,0.00021918,2]
[363135663,1748596254104,-1787.32085474,0.00021918,2]
[363135664,1748596254114,-1787.32085474,0.00021918,2]
[363135665,1748596254123,-1787.32085474,0.00021918,2]
[363135666,1748596254133,-1787.32085474,0.00021918,2]
[363135667,1748596254142,-1787.32085474,0.00021918,2]
[363135668,1748596254152,-1787.32085474,0.00021918,2]
[363135669,1748596254162,-1787.32085474,0.00021918,2]
[363135670,1748596254171,-1787.32085474,0.00021918,2]
[363135671,1748596254181,-1787.32085474,0.00021918,2]
[363135672,1748596254191,-1787.32085474,0.00021918,2]
[363135673,1748596254202,-1787.32085474,0.00021918,2]
[363135674,1748596254211,-1787.32085474,0.00021918,2]
[363135675,1748596254221,-1787.32085474,0.00021918,2]
[363135676,1748596254231,-1787.32085474,0.00021918,2]
[363135677,1748596254240,-1764.25865016,0.00021918,2]
[363135678,1748596254249,-1764.25865016,0.00021918,2]
[363135679,1748596254260,-1764.25865016,0.00021918,2]
[363135680,1748596254270,-1764.25865016,0.00021918,2]
[363135681,1748596254279,-1764.25865016,0.00021918,2]
[363135682,1748596254289,-1764.25865016,0.00021918,2]
[363135683,1748596254298,-1764.25865016,0.00021918,2]
[363135684,1748596254308,-1764.25865016,0.00021918,2]
[363135685,1748596254318,-1764.25865016,0.00021918,2]
[363135686,1748596254328,-1764.25865016,0.00021918,2]
[363135687,1748596254337,-1764.25865016,0.00021918,2]
[363135688,1748596254346,-1764.25865016,0.00021918,2]
[363135689,1748596254355,-1764.25865016,0.00021918,2]
[363135690,1748596254365,-1764.25865016,0.00021918,2]
[363135691,1748596254374,-707.90429478,0.00021918,2]
[363135692,1748596254388,-381.5,0.00021918,2]
[363135693,1748596254400,-674.85435538,0.00021918,2]
[363135694,1748596254409,-1764.25865016,0.00021918,2]
[363135695,1748596254419,-1764.25865016,0.00021918,2]
[363135696,1748596254429,-1764.25865016,0.00021918,2]
[363135697,1748596254439,-1764.25865016,0.00021918,2]
[363135698,1748596254449,-1764.25865016,0.00021918,2]
[363135699,1748596254459,-1764.25865016,0.00021918,2]
[363135700,1748596254468,-1764.25865016,0.00021918,2]
[363135701,1748596254478,-1764.25865016,0.00021918,2]
[363135702,1748596254487,-1764.25865016,0.00021918,2]
[363135703,1748596254497,-1764.25865016,0.00021918,2]
[363135704,1748596254507,-1801.59745755,0.00021918,2]
[363135705,1748596254516,-1801.59745755,0.00021918,2]
[363135706,1748596254525,-1801.59745755,0.00021918,2]
[363135707,1748596254535,-1801.59745755,0.00021918,2]
[363135708,1748596254545,-1801.59745755,0.00021918,2]
[363135709,1748596254555,-1801.59745755,0.00021918,2]
[363135710,1748596254564,-1801.59745754,0.00021918,2]
[363135711,1748596254574,-9117.70271543,0.00021939,2]
[363135712,1748596254583,-2706.6287172,0.00021939,2]
[363135713,1748596254593,-167.42976399,0.00021945,2]
[363135714,1748596254603,-2706.6287172,0.00021967,2]
[363135715,1748596254612,-160.78531053,0.00021973,2]
[363135716,1748596254622,-501.29408857,0.00021973,2]
[363135717,1748596254632,-500.0,0.00021973,2]
[363135718,1748596254641,-500.0,0.00021973,2]
[363135719,1748596254651,-159.55301015,0.00021973,2]
[363135720,1748596254660,-199.47398999,0.00021973,2]
[363135721,1748596254670,-342.95646124,0.00021973,2]